bitfinex-derivatives/quotes_ETHF0:USTF0_20251031
["timestamp","ask_amount","ask_price","bid_price","bid_amount"]
[1761936583079,1.32561189,3852.1,3852.0,0.0021162]
[1761936584981,0.7586,3852.0,3851.0,0.202]
[1761936585174,0.08121189,3851.9,3850.8,0.46769]
[1761936586088,0.08121189,3851.9,3850.8,0.47099079]
[1761936586378,0.08121189,3851.9,3850.8,0.00330079]
[1761936586580,1.2444,3850.9,3850.8,0.00330079]
[1761936586775,0.08121189,3850.9,3850.8,1.20240079]
[1761936586977,0.08438754,3850.9,3850.8,1.67010079]
[1761936589877,1.3981423,3852.1,3851.9,1.1991]
[1761936590082,1.3981423,3852.4,3852.0,1.1991]
[1761936590280,1.3981423,3852.3,3852.0,1.1991]
[1761936590475,1.3981423,3852.4,3852.3,1.1991]
[1761936590678,0.7586,3854.5,3852.0,0.7555]
[1761936590679,2.1567423,3853.5,3852.7,0.46746]
[1761936590883,0.7586,3853.5,3852.7,0.46745]
[1761936591084,0.7586,3853.5,3852.6,0.46748]
[1761936591284,0.7586,3853.5,3852.5,0.7478]
[1761936591588,0.76114167,3853.5,3852.5,0.7478]
[1761936591787,0.76114167,3853.5,3852.5,1.21529]
[1761936591988,0.76114167,3853.5,3852.5,0.7478]
[1761936592187,2.15928397,3853.5,3852.5,0.7478]
[1761936592678,2.15928397,3853.5,3852.0,0.7555]
[1761936593289,0.76114167,3853.5,3852.5,0.74]
[1761936593977,0.76114167,3853.5,3852.6,0.46747]
[1761936594387,0.76114167,3853.5,3852.7,0.46746]
[1761936594785,0.00254167,3853.5,3853.0,0.5585]
[1761936596385,0.00254167,3853.5,3853.4,1.1991]
[1761936597589,1.24694167,3853.5,3853.0,0.5585]
[1761936598491,1.24694167,3853.5,3852.8,0.46744]
[1761936598492,2.00554167,3853.5,3852.8,0.46744]
[1761936598685,2.00554167,3853.5,3852.6,0.46747]
[1761936599081,2.00554167,3853.5,3852.5,0.74]
[1761936599285,2.00554167,3853.5,3852.5,1.20748]
[1761936599490,2.00554167,3853.5,3852.6,0.46747]
[1761936599893,2.00554167,3853.5,3852.4,0.46749]
[1761936600589,2.00554167,3853.5,3852.5,0.543]
[1761936601090,2.00554167,3853.5,3851.6,0.46759]
[1761936601393,0.7586,3853.0,3851.7,0.46759]
[1761936601592,0.7586,3853.0,3852.0,1.01055]
[1761936601794,0.7586,3853.0,3852.1,0.46753]
[1761936601993,0.08119927,3852.9,3852.0,0.543]
[1761936602195,0.08119927,3852.8,3852.7,1.1991]
[1761936602392,0.08119927,3852.8,3852.0,0.543]
[1761936602393,1.32559927,3852.8,3852.0,0.543]
[1761936602592,0.08119927,3852.7,3851.7,0.46758]
[1761936602893,0.7586,3852.5,3851.5,0.7555]
[1761936603083,0.08119927,3852.4,3851.7,0.46758]
[1761936603280,0.08119927,3852.4,3851.5,1.2231]
[1761936603480,0.08119927,3852.4,3851.5,0.7555]
[1761936603890,0.08119927,3852.4,3851.0,0.7555]
[1761936604282,0.08119927,3852.4,3851.5,1.01061]
[1761936604487,0.08119927,3852.4,3851.5,0.543]
[1761936605186,0.08119927,3852.4,3851.0,0.7555]
[1761936605696,1.47934157,3852.4,3851.0,0.7555]
[1761936605993,0.08119927,3852.3,3851.0,0.7555]
[1761936606198,1.3981423,3852.2,3850.8,0.00330079]
[1761936606384,0.7586,3852.0,3851.1,0.46766]
[1761936606582,0.08119927,3851.9,3851.0,0.543]
[1761936607087,0.08119927,3851.9,3851.2,0.46765]
[1761936607787,0.08119927,3851.9,3851.4,0.46762]
[1761936607988,0.08119927,3851.9,3851.8,1.1991]
[1761936608190,1.3981423,3852.4,3851.8,1.1991]
[1761936608394,0.08121934,3852.3,3851.5,0.7555]
[1761936608585,0.08121934,3852.2,3851.5,0.7555]
[1761936608786,0.08121934,3852.1,3851.5,0.7555]
[1761936608982,0.08121934,3852.0,3851.9,1.66666]
[1761936609392,0.08121934,3852.0,3851.9,1.1991]
[1761936610699,0.08121934,3852.0,3851.9,1.1245]
[1761936611998,1.23561934,3852.0,3851.5,0.7555]
[1761936612195,0.08121934,3851.9,3851.5,0.7555]
[1761936612500,0.6277,3852.5,3851.6,0.4676]
[1761936612701,0.08120985,3852.4,3851.6,0.4676]
[1761936613002,0.08120985,3852.3,3851.6,0.4676]
[1761936613197,0.08120985,3852.2,3851.6,0.4676]
[1761936613498,0.08120985,3852.1,3851.6,0.4676]
[1761936613702,0.08120985,3852.0,3851.6,0.4676]
[1761936613889,0.08120985,3851.9,3851.8,1.1245]
[1761936614586,1.23560985,3851.9,3851.5,0.7555]
[1761936614800,0.08120985,3851.8,3851.5,0.7555]
[1761936615000,0.08120985,3851.7,3851.5,0.7555]
[1761936615202,0.08121513,3851.6,3851.5,1.88]
[1761936615696,0.08121513,3851.6,3851.5,1.1245]
[1761936615901,1.23561513,3851.6,3851.3,0.46763]
[1761936616094,1.1544,3851.6,3851.3,0.46763]
[1761936616295,0.08121806,3851.5,3851.4,1.1245]
[1761936616697,0.6277,3852.0,3851.4,1.1245]
[1761936616892,0.08121799,3851.9,3851.4,1.1245]
[1761936617203,0.08121799,3851.8,3851.4,1.1245]
[1761936617393,0.08121799,3851.7,3851.4,1.1245]
[1761936617595,0.08121799,3851.6,3851.4,1.1245]
[1761936617899,0.6277,3852.0,3851.5,1.1245]
[1761936618099,0.08121877,3851.9,3851.5,1.1245]
[1761936618300,0.08121877,3851.8,3851.5,1.1245]
[1761936618494,0.08121877,3851.7,3851.5,1.1245]
[1761936618802,0.08121877,3851.6,3851.5,1.1245]
[1761936619698,0.08121877,3851.6,3851.5,1.98011]
[1761936620303,1.3981423,3852.7,3851.6,0.4676]
[1761936620608,0.6174,3852.5,3851.5,0.388]
[1761936620906,0.08120959,3852.4,3852.0,1.12775]
[1761936621103,0.08120959,3852.3,3852.2,1.0335]
[1761936623503,0.08120959,3852.3,3852.2,1.50103]
[1761936624802,0.08120959,3852.3,3852.2,1.0335]
[1761936625606,0.08120959,3852.3,3852.2,1.50103]
[1761936627206,0.08120959,3852.3,3852.2,1.0335]
[1761936627709,0.08120959,3852.3,3852.2,1.50103]
[1761936628704,0.08120959,3852.3,3852.2,1.0335]
[1761936630007,0.08120959,3852.3,3852.2,1.50103]
[1761936630211,1.3981423,3853.3,3852.5,1.12768]
[1761936630407,1.3981423,3853.3,3852.6,0.46747]
[1761936630706,1.3981423,3853.4,3852.5,1.12768]
[1761936631103,1.3981423,3853.3,3852.0,0.6602]
[1761936631309,2.0155423,3853.0,3852.0,0.6602]
[1761936631509,2.0155423,3853.0,3852.1,0.46753]
[1761936632603,2.0155423,3853.0,3852.2,0.46752]
[1761936632909,2.0155423,3853.0,3852.0,0.6602]
[1761936633210,0.6174,3853.0,3852.3,0.4675]
[1761936633812,0.6174,3853.0,3852.5,0.6602]
[1761936634511,1.3981423,3853.2,3852.9,1.0335]
[1761936634706,1.3981423,3853.3,3852.9,1.0335]
[1761936634902,1.3981423,3853.2,3852.9,1.0335]
[1761936635206,1.3981423,3853.2,3852.5,0.6602]
[1761936635207,1.7198,3853.0,3852.5,0.6602]
[1761936636110,1.7198,3853.0,3852.5,1.12769]
[1761936636406,1.3981423,3853.4,3852.9,1.0335]
[1761936636711,1.1024,3853.0,3852.9,1.0335]
[1761936636908,1.7198,3853.0,3852.5,0.6602]
[1761936637107,1.7198,3853.0,3852.4,0.4675]
[1761936637313,1.7198,3853.0,3852.5,0.6602]
[1761936637503,1.1024,3853.0,3852.9,1.0335]
[1761936638009,1.7198,3853.0,3852.5,0.6602]
[1761936640208,1.1024,3852.6,3852.0,0.6602]
[1761936640513,0.5791,3852.5,3851.2,2.08557173]
[1761936640712,0.5791,3852.5,3851.2,1.16912]
[1761936640911,0.5791,3852.5,3851.7,0.46757]
[1761936641211,0.5791,3852.5,3851.6,0.4676]
[1761936641410,0.5791,3852.5,3851.8,0.46757]
[1761936641611,0.5791,3852.5,3852.0,1.05905]
[1761936642114,0.08120039,3852.4,3852.0,1.05905]
[1761936642408,0.08120039,3852.3,3852.2,0.9785]
[1761936643005,0.08120039,3852.4,3852.2,0.9785]
[1761936643210,0.08120039,3852.3,3852.2,0.9785]
[1761936643405,0.08120039,3852.4,3852.2,0.9785]
[1761936643604,0.08120039,3852.3,3852.2,0.9785]
[1761936643806,1.07730039,3852.3,3852.2,0.9785]
[1761936644006,1.07730039,3852.3,3851.7,0.46758]
[1761936644206,0.08120039,3852.2,3851.7,0.46758]
[1761936644406,1.07730039,3852.1,3852.0,0.9785]
[1761936644609,1.07730039,3852.1,3851.6,0.4676]
[1761936644808,0.08120039,3852.0,3851.6,0.4676]
[1761936645110,0.08120039,3851.9,3851.8,0.9785]
[1761936645306,0.08120039,3852.4,3851.8,0.9785]
[1761936645511,0.08120039,3852.3,3851.8,1.44607]
[1761936645813,0.08120039,3852.2,3851.8,0.9785]
[1761936646013,0.08120039,3852.1,3852.0,0.9785]
[1761936646209,0.08120039,3852.4,3852.0,0.9785]
[1761936646413,0.9961,3852.1,3852.0,0.9785]
[1761936646616,1.07730039,3852.1,3852.0,0.9785]
[1761936646808,1.07730039,3852.1,3851.1,0.91645173]
[1761936646809,1.07730039,3852.1,3851.4,0.46762]
[1761936647009,0.5791,3852.5,3851.4,0.46762]
[1761936647010,0.66030039,3852.0,3851.4,0.46762]
[1761936647215,0.08120039,3851.9,3851.0,0.543]
[1761936647812,0.08120039,3851.9,3851.0,1.01066]
[1761936648622,0.08120039,3851.9,3851.1,0.46765]
[1761936649519,0.28139471,3851.9,3851.0,0.543]
[1761936649715,0.08120039,3851.8,3850.8,0.00330079]
[1761936650017,0.08120039,3851.8,3851.7,0.9785]
[1761936650208,1.9772423,3852.0,3851.9,0.9785]
[1761936650411,3.0545612,3852.0,3851.9,0.9785]
[1761936650714,3.0545612,3852.0,3851.5,0.5915]
[1761936651014,0.0812189,3851.9,3851.5,0.5915]
[1761936651211,0.0812189,3851.8,3851.5,0.5915]
[1761936651419,0.0812189,3851.7,3851.6,0.9785]
[1761936652523,1.0773189,3851.7,3851.6,0.9785]
[1761936652824,1.0773189,3851.7,3851.0,0.4276]
[1761936653024,0.5791,3851.5,3851.0,0.4276]
[1761936653224,0.0812189,3851.4,3851.0,0.4276]
[1761936653422,0.0812189,3851.4,3851.3,0.9785]
[1761936653820,0.0812189,3851.9,3851.2,0.46764]
[1761936654020,0.0812189,3851.8,3851.7,0.9785]
[1761936654922,1.0773189,3851.8,3851.1,0.46765]
[1761936655122,0.0812189,3851.7,3851.2,0.46764]
[1761936655326,0.0812189,3851.6,3851.5,0.9785]
[1761936656026,1.0773189,3851.6,3851.5,0.9785]
[1761936656718,0.5791,3851.5,3851.0,0.4276]
[1761936656919,0.0812189,3851.4,3851.0,0.4276]
[1761936657114,0.0812189,3851.4,3850.8,0.00330079]
[1761936657525,0.0812189,3851.4,3851.3,0.9785]
[1761936658026,1.0773189,3851.4,3851.3,0.9785]
[1761936658214,1.07732302,3851.4,3851.3,0.9785]
[1761936658527,1.07732302,3851.4,3851.0,0.4276]
[1761936658723,0.08122302,3851.3,3851.0,0.4276]
[1761936658933,0.08122302,3851.2,3851.1,0.9785]
[1761936661330,0.08122302,3851.2,3850.8,0.47100079]
[1761936661331,1.07732302,3851.2,3850.8,0.00330079]
[1761936661529,0.08122302,3851.1,3851.0,0.9785]
[1761936663626,1.07732302,3851.1,3851.0,0.9785]
[1761936663930,0.08122302,3851.1,3851.0,1.87377]
[1761936664136,0.08122302,3851.1,3851.0,1.4061]
[1761936664524,0.08122302,3851.1,3851.0,0.9785]
[1761936664731,1.07732302,3851.1,3851.0,0.9785]
[1761936664926,1.07732302,3851.1,3850.8,0.00330079]
[1761936665234,0.9961,3850.9,3850.8,0.00330079]
[1761936665426,1.07732302,3850.9,3850.8,0.00330079]
[1761936666430,9.07732302,3850.9,3850.8,0.00330079]
[1761936666628,0.9961,3849.8,3849.7,0.02597639]
[1761936666934,0.08124728,3849.8,3849.7,1.00447639]
[1761936667836,1.08052802,3849.8,3849.7,1.00763005]
[1761936668029,0.08442802,3849.8,3849.7,1.00763005]
[1761936668728,1.00107721,3850.8,3850.0,0.46779]
[1761936669036,0.08124758,3850.7,3850.6,0.9785]
[1761936669731,0.08356821,3850.7,3850.6,0.9785]
[1761936669936,0.08356821,3850.7,3850.6,1.44622]
[1761936670535,2.43500708,3852.5,3851.9,0.9241]
[1761936670833,2.43500708,3853.0,3852.0,0.4967]
[1761936671031,0.5791,3853.0,3852.0,0.4967]
[1761936671437,0.78198766,3853.0,3851.2,0.20517114]
[1761936671638,2.63789474,3853.0,3851.3,0.46763]
[1761936671838,0.78198766,3853.0,3852.0,0.2829]
[1761936672431,0.78198766,3853.0,3852.0,0.75045]
[1761936672632,0.58159079,3853.0,3852.2,0.46752]
[1761936672938,0.58159079,3853.0,3852.3,0.46751]
[1761936673437,0.58159079,3853.0,3852.0,0.75044]
[1761936673639,0.58159079,3853.0,3852.1,0.46753]
[1761936673835,0.58159079,3853.0,3852.2,0.46752]
[1761936674431,0.00249079,3853.0,3852.0,0.2829]
[1761936674630,0.52479079,3853.0,3852.2,0.46752]
[1761936675235,0.52479079,3853.0,3852.0,0.2829]
[1761936675641,0.52479079,3853.0,3852.1,0.46753]
[1761936676139,0.52479079,3853.0,3852.1,0.46754]
[1761936676343,0.52479079,3853.0,3852.0,0.2829]
[1761936676636,0.52479079,3853.0,3852.3,0.46751]
[1761936676836,0.52479079,3853.0,3852.0,0.2829]
[1761936677230,0.52479079,3853.0,3852.2,0.46752]
[1761936677934,0.52479079,3853.0,3852.0,0.2829]
[1761936678336,0.52479079,3853.0,3852.2,0.46752]
[1761936678534,0.52479079,3853.0,3852.0,0.2829]
[1761936678735,0.52479079,3853.0,3851.5,0.2829]
[1761936678936,0.52479079,3853.0,3851.7,0.46759]
[1761936679236,0.52479079,3853.0,3851.6,0.46759]
[1761936679432,0.52479079,3853.0,3851.5,0.2829]
[1761936679632,0.52479079,3853.0,3851.8,0.46757]
[1761936679833,0.52479079,3853.0,3851.5,0.2829]
[1761936680033,0.52479079,3853.0,3852.0,0.98045]
[1761936681633,0.52479079,3853.0,3852.0,0.5129]
[1761936682130,0.52479079,3853.0,3851.6,0.4676]
[1761936682330,0.52479079,3853.0,3852.0,0.46755]
[1761936682637,0.08120779,3852.9,3852.0,0.98045]
[1761936682942,0.08120779,3852.8,3852.0,0.98045]
[1761936683133,0.08120779,3852.7,3852.0,0.98045]
[1761936683333,0.5214,3852.5,3852.0,0.5129]
[1761936683532,0.08120779,3852.4,3852.0,0.5129]
[1761936683741,0.08120779,3852.3,3851.8,0.46756]
[1761936683942,0.08120779,3852.2,3851.8,0.46756]
[1761936684143,0.08120779,3852.1,3852.0,0.8427]
[1761936684845,0.5214,3852.5,3852.0,0.8427]
[1761936685038,0.08120343,3852.4,3852.0,0.8427]
[1761936685238,0.08120343,3852.3,3852.0,0.8427]
[1761936685446,0.08120343,3852.2,3852.0,0.8427]
[1761936685747,0.5214,3852.5,3852.0,0.8427]
[1761936685936,0.08120344,3852.4,3852.0,0.8427]
[1761936686241,0.08120344,3852.3,3852.0,0.8427]
[1761936686439,0.08120344,3852.2,3852.0,0.8427]
[1761936686642,0.5214,3852.5,3852.0,0.8427]
[1761936686837,0.08120343,3852.4,3852.0,0.8427]
[1761936687042,0.5214,3852.0,3851.5,0.2829]
[1761936687644,0.5214,3852.0,3851.5,0.75051]
[1761936688145,0.5214,3852.0,3851.5,0.46761]
[1761936688344,0.5214,3852.0,3851.5,0.98041]
[1761936688545,0.5214,3852.0,3851.6,0.46759]
[1761936688942,0.5214,3852.0,3851.5,0.98041]
[1761936689950,0.5214,3852.0,3851.6,0.4676]
[1761936690145,0.5214,3852.0,3851.5,0.98041]
[1761936690542,0.5214,3852.0,3851.5,0.5128]
[1761936690851,0.5214,3852.0,3851.5,0.98041]
[1761936693651,0.08120768,3851.9,3851.4,0.46762]
[1761936693950,0.5214,3852.0,3851.4,0.46761]
[1761936694252,0.08120927,3851.9,3851.4,0.46762]
[1761936694454,0.5214,3852.0,3851.4,0.46762]
[1761936694639,0.08121155,3851.9,3851.2,0.46764]
[1761936694840,0.5214,3852.0,3850.5,1.76082]
[1761936694841,0.08121225,3851.8,3850.5,1.76082]
[1761936695046,0.08121273,3851.7,3851.1,0.46766]
[1761936695354,0.5214,3851.5,3850.6,0.46771]
[1761936695549,0.5214,3851.5,3850.0,1.42935173]
[1761936695550,0.08121273,3851.4,3850.0,0.5129]
[1761936695753,0.08121273,3851.4,3850.3,0.46775]
[1761936696450,0.08121273,3851.4,3850.4,0.46774]
[1761936696853,0.08121273,3851.4,3850.2,0.46777]
[1761936697755,0.08121273,3851.4,3850.1,0.46778]
[1761936697950,1.39519155,3851.2,3850.1,0.46778]
[1761936698160,0.5214,3851.0,3850.1,0.46778]
[1761936698453,0.08121273,3850.9,3850.0,0.98069]
[1761936698656,0.08121273,3850.9,3850.0,0.5129]
[1761936698955,0.9015,3849.8,3849.7,0.02913005]
[1761936699154,0.98275057,3849.8,3849.7,0.02913005]
[1761936699350,0.98559553,3849.8,3849.7,0.02913005]
[1761936702351,0.98559553,3849.8,3849.7,0.82203005]
[1761936702352,0.00284496,3849.8,3849.7,0.82203005]
[1761936703957,0.79204496,3849.8,3849.7,0.02913005]
[1761936704560,0.87330672,3849.8,3849.7,0.02913005]
[1761936705462,0.08410672,3849.8,3849.7,0.82203005]
[1761936705657,0.00284496,3849.8,3849.7,0.82203005]
[1761936705953,0.79204496,3849.8,3849.7,0.02913005]
[1761936706156,0.87330584,3849.8,3849.7,0.02913005]
[1761936706462,0.00284496,3849.8,3849.7,0.82203005]
[1761936707259,0.79204496,3849.8,3849.7,0.82203005]
[1761936707656,0.00284496,3849.8,3849.7,0.82203005]
[1761936709862,0.00284496,3849.8,3849.7,1.28986005]
[1761936710156,0.00284496,3849.8,3849.7,0.82203005]
[1761936710561,0.00284496,3849.8,3849.7,1.28986005]
[1761936711559,0.00284496,3849.8,3849.7,0.82203005]
[1761936711861,0.00284496,3849.8,3849.7,1.28986005]
[1761936713858,0.00284496,3849.8,3849.7,0.82203005]
[1761936714064,0.79204496,3849.8,3849.7,0.02913005]
[1761936715566,0.87330216,3849.8,3849.7,0.02913005]
[1761936717465,8.87330216,3849.8,3848.0,0.3072]
[1761936717761,0.0812572,3849.7,3848.5,0.46797]
[1761936718568,0.0812572,3849.7,3848.5,0.47055071]
[1761936718761,0.496,3849.0,3848.5,0.00258071]
[1761936719266,0.496,3849.0,3848.9,0.7929]
[1761936719459,0.57727017,3849.0,3848.9,0.7929]
[1761936719663,0.496,3849.0,3848.9,0.7929]
[1761936720362,0.57726982,3849.0,3848.9,0.7929]
[1761936720565,1.36646982,3849.0,3848.6,0.46796]
[1761936720759,1.2852,3849.0,3848.9,0.7929]
[1761936720962,0.08127131,3849.0,3848.9,0.7929]
[1761936721267,0.00284496,3849.8,3849.7,0.7929]
[1761936721669,0.00284496,3849.8,3849.7,1.26073]
[1761936721964,0.00284496,3849.8,3849.7,0.7929]
[1761936723764,0.00284496,3849.8,3849.1,0.4679]
[1761936723968,0.00284496,3849.8,3849.7,0.7929]
[1761936725364,0.79204496,3849.8,3848.6,1.16992]
[1761936725767,0.79204496,3849.8,3848.1,1.17005]
[1761936726160,2.18723651,3849.8,3848.8,0.46793]
[1761936726665,2.18723651,3849.8,3848.6,0.46796]
[1761936726865,2.18723651,3849.8,3848.0,0.2522]
[1761936726866,2.18723651,3849.8,3848.5,0.47055071]
[1761936727060,1.39519155,3849.7,3848.5,0.47055071]
[1761936727262,0.496,3849.5,3848.6,0.46796]
[1761936727455,0.496,3849.5,3848.5,0.47055071]
[1761936727661,1.89119155,3849.5,3848.5,0.47055071]
[1761936727861,1.89119155,3849.5,3848.6,0.46796]
[1761936728057,0.496,3849.5,3848.7,0.46794]
[1761936728670,0.496,3849.5,3848.8,0.46793]
[1761936728866,0.496,3849.5,3849.1,0.4679]
[1761936729065,0.496,3849.5,3849.0,0.46791]
[1761936729266,0.496,3849.5,3849.1,0.4679]
[1761936730073,1.39519155,3849.7,3849.6,0.7929]
[1761936730271,1.39803651,3849.8,3849.6,0.7929]
[1761936730664,2.18439155,3849.7,3849.1,0.46789]
[1761936730971,2.18439155,3849.7,3849.0,0.3422]
[1761936731271,2.18439155,3849.7,3849.3,0.46788]
[1761936731272,1.39519155,3849.7,3849.3,0.46788]
[1761936731572,1.39519155,3849.7,3849.6,0.7694]
[1761936731772,2.13979155,3849.7,3849.1,0.46789]
[1761936731974,0.7446,3849.7,3849.2,0.46789]
[1761936732175,2.13979155,3849.7,3849.2,0.46789]
[1761936732369,2.13979155,3849.7,3849.3,0.46788]
[1761936732769,2.13979155,3849.7,3849.1,0.46789]
[1761936733171,2.13979155,3849.7,3849.2,0.46789]
[1761936733374,0.0812618,3849.6,3849.2,0.46789]
[1761936733573,0.0812618,3849.5,3849.4,0.7694]
[1761936733772,0.5379618,3849.5,3849.4,0.7694]
[1761936735267,0.0812618,3849.5,3849.4,0.7694]
[1761936735472,0.0812618,3849.5,3849.4,1.23727]
[1761936735880,0.0812618,3849.5,3849.4,0.7694]
[1761936736176,1.2825618,3849.5,3848.5,0.25478071]
[1761936736374,0.0812618,3849.4,3849.2,0.46789]
[1761936736575,0.0812618,3849.4,3849.3,0.7694]
[1761936736777,0.0812618,3849.4,3849.1,0.4679]
[1761936736778,0.7446,3849.2,3849.1,0.4679]
[1761936736981,0.0812618,3849.2,3849.1,1.2373]
[1761936737978,0.00284496,3849.8,3849.7,1.23723]
[1761936738179,0.08409518,3849.8,3849.7,1.23723]
[1761936739369,0.08409518,3849.8,3849.7,0.7694]
[1761936740274,0.08409518,3849.8,3849.0,1.36578]
[1761936740275,0.4608,3849.5,3849.4,0.46787]
[1761936740480,0.54205022,3849.5,3849.4,1.23337]
[1761936740776,0.08125022,3849.5,3849.4,1.23337]
[1761936740979,0.00284496,3849.8,3849.7,0.7655]
[1761936741175,0.08409628,3849.8,3849.7,0.7655]
[1761936741681,0.08409628,3849.8,3849.7,1.23333]
[1761936741875,1.39519155,3850.6,3850.5,1.23323]
[1761936742073,1.39519155,3851.3,3851.2,0.7655]
[1761936742273,1.85599155,3851.5,3851.2,0.7655]
[1761936742776,1.85599155,3851.5,3850.8,0.46769]
[1761936742976,1.85879606,3851.5,3851.2,0.00210903]
[1761936743585,0.46360451,3851.5,3851.2,0.00210903]
[1761936745485,0.00280451,3851.5,3851.4,0.7655]
[1761936745969,0.46360451,3851.5,3851.4,0.7655]
[1761936746173,0.00280451,3851.5,3851.4,0.7655]
[1761936749483,0.00280451,3851.5,3851.4,1.23312]
[1761936751985,0.4608,3852.5,3851.4,0.7655]
[1761936752196,0.4608,3852.5,3851.2,0.00210903]
[1761936752197,0.4608,3852.5,3851.8,0.46757]
[1761936752485,0.4608,3852.5,3851.7,0.46758]
[1761936752673,0.4608,3852.5,3851.5,0.3552]
[1761936752878,0.4608,3852.5,3851.2,0.00210903]
[1761936753189,0.46302128,3852.5,3851.7,0.46758]
[1761936753376,0.46302128,3852.5,3851.3,1.16909]
[1761936753583,0.46302128,3852.5,3851.8,0.46757]
[1761936753888,0.4608,3852.0,3851.6,0.46759]
[1761936754282,0.4608,3852.0,3851.2,1.17122903]
[1761936754481,0.4608,3852.0,3851.7,0.46759]
[1761936755781,0.4608,3852.0,3851.4,0.46761]
[1761936755981,0.4608,3852.0,3851.2,1.17122903]
[1761936756579,0.4608,3852.0,3851.2,0.00210903]
[1761936756892,0.4608,3851.5,3851.4,1.23312]
[1761936757184,1.2511,3851.5,3851.4,0.46762]
[1761936757385,1.37749579,3854.0,3853.9,0.46732]
[1761936757582,0.4608,3855.0,3854.5,0.46725]
[1761936757777,0.4608,3855.0,3854.8,0.46721]
[1761936757980,0.4608,3855.0,3854.9,1.1410483]
[1761936758273,0.4608,3855.0,3854.1,0.68773479]
[1761936758475,0.4608,3855.0,3854.7,0.46721]
[1761936758675,0.4608,3855.0,3854.9,0.4672]
[1761936758880,0.46413687,3855.0,3854.9,0.46992862]
[1761936759083,1.25443687,3855.0,3854.9,0.00272862]
[1761936760189,0.4608,3855.5,3855.4,0.46714]
[1761936760389,0.4608,3855.5,3855.3,0.46714]
[1761936761184,0.46303319,3855.5,3855.3,0.46714]
[1761936762187,0.4608,3856.0,3854.9,1.17071862]
[1761936762493,0.4608,3856.0,3855.9,0.46708]
[1761936762990,0.4608,3856.0,3855.4,0.46713]
[1761936762991,0.5228,3855.6,3855.4,0.46713]
[1761936763183,0.52467564,3855.6,3854.9,0.00272862]
[1761936763379,0.52467564,3855.6,3855.1,0.46717]
[1761936763579,0.52467564,3855.6,3855.2,0.46716]
[1761936763989,0.52467564,3855.6,3855.3,0.46714]
[1761936764189,0.52467564,3855.6,3855.5,0.46713]
[1761936764791,0.52467564,3855.6,3855.2,0.46716]
[1761936765086,0.52467564,3855.6,3855.3,0.46715]
[1761936765777,0.52467564,3855.6,3855.4,0.46713]
[1761936770595,0.4608,3856.0,3855.9,0.46708]
[1761936770796,0.54192503,3856.0,3855.9,0.46708]
[1761936771096,0.4608,3856.0,3855.9,0.46708]
[1761936771392,0.5228,3857.0,3856.0,0.46706]
[1761936771393,0.8646,3856.2,3856.0,0.46706]
[1761936771591,0.5228,3856.0,3855.2,1.16791]
[1761936771798,1.3874,3855.5,3855.4,0.46714]
[1761936772195,0.5228,3855.5,3855.4,0.46714]
[1761936775296,0.6039254,3855.5,3855.4,0.46714]
[1761936775494,0.6039254,3855.5,3854.9,1.17071862]
[1761936775694,0.5228,3855.5,3855.4,0.46714]
[1761936775895,0.60392672,3855.5,3855.4,0.46714]
[1761936777596,1.46852672,3855.5,3855.4,0.46714]
[1761936778201,1.46852672,3855.5,3855.4,1.15803713]
[1761936780698,0.8646,3855.1,3855.0,0.46718]
[1761936780900,0.94572672,3855.1,3855.0,1.15884726]
[1761936781101,0.08112672,3855.1,3855.0,1.15884726]
[1761936781294,0.5228,3855.5,3855.1,0.46717]
[1761936781295,0.8646,3855.3,3855.1,0.46717]
[1761936781497,0.8646,3855.3,3855.2,0.69166726]
[1761936781699,0.94573415,3855.3,3855.2,0.69166726]
[1761936782095,1.3874,3855.0,3854.9,0.00272862]
[1761936782296,1.46853415,3855.0,3854.9,0.69555221]
[1761936783190,0.60393415,3855.0,3854.9,1.84578549]
[1761936783595,0.60393415,3855.0,3854.9,1.16275221]
[1761936784203,0.60393415,3855.0,3854.9,2.08378334]
[1761936784399,1.46853415,3855.0,3854.9,1.61658334]
[1761936784600,1.46853415,3855.0,3854.9,0.69555221]
[1761936785105,1.46853415,3855.0,3854.9,1.38250485]
[1761936785296,1.46853415,3855.0,3854.9,1.61658334]
[1761936786300,1.46853415,3855.0,3854.9,2.08510246]
[1761936787206,1.46853415,3855.0,3854.9,2.52092369]
[1761936787601,1.46853415,3855.0,3854.9,0.69555221]
[1761936788508,1.46853415,3855.0,3853.8,1.16832]
[1761936788509,0.8646,3854.7,3854.6,1.38336743]
[1761936788706,0.94573415,3854.7,3854.6,1.38336743]
[1761936789309,0.94573415,3854.7,3854.6,0.00308113]
[1761936791419,0.94573415,3854.7,3854.6,0.92443822]
[1761936791822,0.94573415,3854.7,3854.6,0.00308113]
[1761936792215,0.94573415,3854.7,3854.6,0.69388428]
[1761936792722,0.94573415,3854.7,3854.6,0.00308113]
[1761936793121,0.94573415,3854.7,3854.6,0.6934828]
[1761936793813,0.8531,3854.4,3854.3,0.92135709]
[1761936794014,0.93423415,3854.4,3854.3,0.92135709]
[1761936795017,0.8531,3854.3,3854.2,0.92135709]
[1761936795219,0.8531,3854.2,3854.1,0.92135709]
[1761936795414,0.93423415,3854.2,3854.1,0.92439122]
[1761936796118,0.93423415,3854.2,3854.1,0.00303413]
[1761936799914,0.93423415,3854.2,3853.3,0.92135709]
[1761936800112,0.4972,3853.5,3853.0,0.92135709]
[1761936800311,0.4972,3853.0,3852.9,0.46744]
[1761936800622,0.57833415,3853.0,3852.9,1.29144]
[1761936801120,0.58047772,3853.0,3852.9,1.29363753]
[1761936801823,0.58047772,3853.0,3852.9,0.46963753]
[1761936802224,0.58047772,3853.0,3852.9,1.29363753]
[1761936802626,0.58047772,3853.0,3852.9,0.46963753]
[1761936802925,0.58047772,3853.0,3852.9,1.29363753]
[1761936803120,0.58047772,3853.0,3852.9,0.82619753]
[1761936803323,1.45367772,3853.0,3852.9,0.00219753]
[1761936803725,1.45367772,3853.0,3852.9,0.46963753]
[1761936803924,0.00214357,3853.0,3852.9,1.29363753]
[1761936805528,1.37254357,3853.0,3852.9,0.46963753]
[1761936806931,1.45372103,3853.0,3852.9,0.46963753]
[1761936807131,1.37254357,3853.0,3852.9,0.46963753]
[1761936807625,1.37254357,3853.0,3852.9,1.29363753]
[1761936807830,0.49934357,3853.0,3852.9,1.29363753]